[Event "Silves Open 2025"]
[Site "Fissul"]
[Date "2025.03.06"]
[Round "8.30"]
[White "Ribeiro, Margarida"]
[Black "Mostafa, Hazem Farouk Mahmoud"]
[Result "1-0"]
[Annotator "NA COMBH"]
[ECO "B07"]
[WhiteElo "1519"]
[BlackElo "1769"]
[PlyCount "80"]
[EventDate "2025.03.03"]
[EventType "swiss"]
[EventCountry "POR"]
[SourceTitle "playchess.com"]
[Source "ChessBase"]
[SourceQuality "1"]
[TimeControl "5400+30"]

1. e4 {[%emt 1:31:00]} d6 {[%emt 1:31:00]} 2. d4 {[%emt 0:00:30]} Nf6 {[%emt 0:00:30]} 3. Nc3 {[%emt 0:00:30]} g6 {[%emt 0:00:30]} 4. Be3 {[%emt 0:00:30]} Bg7 {[%emt 0:00:30]} 5. Qd2 {[%emt 0:00:30]} h6 {[%emt 0:00:30]} 6. Be2 {[%emt 0:00:30]} c6 {[%emt 0:00:30]} 7. a4 {[%emt 0:00:30]} Qc7 {[%emt 0:00:30]} 8. h3 {[%emt 0:00:30]} Nbd7 {[%emt 0:00:30]} 9. Nf3 {[%emt 0:00:30]} e5 {[%emt 0:00:30]} 10. dxe5 {[%emt 0:00:30]} dxe5 {[%emt 0:00:30]} 11. O-O {[%emt 0:00:30]} b6 {[%emt 0:00:30]} 12. b4 {[%emt 0:00:30]} Bb7 {[%emt 0:00:30]} 13. a5 {[%emt 0:00:30]} Rd8 {[%emt 0:00:30]} 14. Rfd1 {[%emt 0:00:30]} g5 {[%emt 0:00:30]} 15. axb6 {[%emt 0:00:30]} axb6 {[%emt 0:00:30]} 16. Na4 {[%emt 0:00:30]} Nxe4 {[%emt 0:00:30]} 17. Bxb6 {[%emt 0:00:30]} Nxd2 {[%emt 0:00:30]} 18. Bxc7 {[%emt 0:00:30]} Nxf3+ {[%emt 0:00:30]} 19. Bxf3 {[%emt 0:00:30]} Rc8 {[%emt 0:00:30]} 20. Bb6 {[%emt 0:00:30]} e4 {[%emt 0:00:30]} 21. Bg4 {[%emt 0:00:30]} Bxa1 {[%emt 0:00:30]} 22. Bxd7+ {[%emt 0:00:30]} Ke7 {[%emt 0:00:30]} 23. Bxc8 {[%emt 0:00:30]} Bxc8 {[%emt 0:00:30]} 24. Rxa1 {[%emt 0:00:30]} Re8 {[%emt 0:00:30]} 25. Re1 {[%emt 0:00:30]} Kd6 {[%emt 0:00:30]} 26. Bc5+ {[%emt 0:00:30]} Kd5 {[%emt 0:00:30]} 27. Nb6+ {[%emt 0:00:30]} Ke5 {[%emt 0:00:30]} 28. Nxc8 {[%emt 0:00:30]} Rxc8 {[%emt 0:00:30]} 29. f3 {[%emt 0:00:30]} f5 {[%emt 0:00:30]} 30. c3 {[%emt 0:00:30]} Ra8 {[%emt 0:00:30]} 31. Bd4+ {[%emt 0:00:30]} Kd5 {[%emt 0:00:30]} 32. fxe4+ {[%emt 0:00:30]} fxe4 {[%emt 0:00:30]} 33. g4 {[%emt 0:00:30]} Ra2 {[%emt 0:00:30]} 34. Bg7 {[%emt 0:00:30]} Rc2 {[%emt 0:00:30]} 35. Re3 {[%emt 0:00:30]} Rd2 {[%emt 0:00:30]} 36. Bxh6 {[%emt 0:00:30]} Rd3 {[%emt 0:00:30]} 37. Bxg5 {[%emt 0:00:30]} Rxe3 {[%emt 0:00:30]} 38. Bxe3 {[%emt 0:00:30]} Kc4 {[%emt 0:00:30]} 39. Bd4 {[%emt 0:00:30]} e3 {[%emt 0:00:30]} 40. Bxe3 {[%emt 0:00:30]} Kxc3 {[%emt 0:00:30]} 1-0

[Event "Silves Open 2025"]
[Site "Fissul"]
[Date "2025.03.06"]
[Round "8.32"]
[White "Goncalves, Beatriz M A C Nunes"]
[Black "Jeremias, Damaim"]
[Result "1/2-1/2"]
[Annotator "NA RC COMBH"]
[ECO "B01"]
[WhiteElo "1458"]
[BlackElo "1690"]
[PlyCount "83"]
[EventDate "2025.03.03"]
[EventType "swiss"]
[EventCountry "POR"]
[SourceTitle "playchess.com"]
[Source "ChessBase"]
[SourceQuality "1"]
[TimeControl "5400+30"]

1. e4 {[%emt 0:00:14]} d5 {[%emt 0:00:08]} 2. exd5 {[%emt 0:00:22]} Nf6 {[%emt 0:00:03]} 3. Nf3 {[%emt 0:02:37]} Nxd5 {[%emt 0:00:28]} 4. Bc4 {[%emt 0:00:49]} Bg4 {[%emt 0:02:04]} 5. Be2 {[%emt 0:01:25]} Nf4 {[%emt 0:00:51]} 6. O-O {[%emt 0:01:06]} Nxe2+ {[%emt 0:00:55]} 7. Qxe2 {[%emt 0:00:21]} c6 {[%emt 0:01:01]} 8. d4 {[%emt 0:02:05]} Bxf3 {[%emt 0:02:15]} 9. Qxf3 {[%emt 0:00:04]} Nd7 {[%emt 0:03:16]} 10. c4 {[%emt 0:09:28]} e6 {[%emt 0:08:45]} 11. b3 {[%emt 0:04:36]} Nf6 {[%emt 0:03:32]} 12. Bb2 {[%emt 0:02:23]} Be7 {[%emt 0:00:07]} 13. Nd2 {[%emt 0:03:44]} O-O {[%emt 0:02:04]} 14. Ne4 {[%emt 0:01:05]} Nxe4 {[%emt 0:01:04]} 15. Qxe4 {[%emt 0:00:51]} Bf6 {[%emt 0:00:25]} 16. Rfd1 {[%emt 0:05:06]} Qc7 {[%emt 0:01:57]} 17. Ba3 {[%emt 0:06:58]} Rfd8 {[%emt 0:01:57]} 18. Rd3 {[%emt 0:15:23]} Rd7 {[%emt 0:01:17]} 19. Rad1 {[%emt 0:00:46]} Rad8 {[%emt 0:04:44]} 20. Bc1 {[%emt 0:22:38]} a6 {[%emt 0:04:11]} 21. Bf4 {[%emt 0:01:39]} Qa5 {[%emt 0:06:14]} 22. R1d2 {[%emt 0:02:26]} e5 {[%emt 0:11:16]} 23. Bxe5 {[%emt 0:03:42]} Bxe5 {[%emt 0:05:20]} 24. dxe5 {[%emt 0:00:06]} Rxd3 {[%emt 0:00:44]} 25. Rxd3 {[%emt 0:00:03]} Rxd3 {[%emt 0:00:57]} 26. Qxd3 {[%emt 0:00:02]} Qe1+ {[%emt 0:37:55]} 27. Qf1 {[%emt 0:14:01]} Qxe5 {[%emt 0:00:00]} 28. Qd1 {[%emt 0:00:00]} g6 {[%emt 0:00:00]} 29. h3 {[%emt 0:00:00]} Kg7 {[%emt 0:00:00]} 30. Qd2 {[%emt 0:00:00]} Qe7 {[%emt 0:00:00]} 31. Qe3 {[%emt 0:00:11]} Qd7 {[%emt 0:00:00]} 32. Qe5+ {[%emt 0:00:32]} f6 {[%emt 0:00:00]} 33. Qb2 {[%emt 0:00:12]} g5 {[%emt 0:00:00]} 34. Qe2 {[%emt 0:00:36]} h6 {[%emt 0:00:00]} 35. f3 {[%emt 0:00:26]} Kg6 {[%emt 0:00:00]} 36. Qe4+ {[%emt 0:00:10]} f5 {[%emt 0:00:00]} 37. Qe5 {[%emt 0:00:13]} h5 {[%emt 0:00:00]} 38. Qh8 {[%emt 0:01:05]} h4 {[%emt 0:00:00]} 39. Qg8+ {[%emt 0:00:05]} Qg7 {[%emt 0:00:00]} 40. Qe6+ {[%emt 0:00:19]} Qf6 {[%emt 0:00:00]} 41. Qg8+ {[%emt 0:00:07]} Qg7 {[%emt 0:00:00]} 42. Qe6+ {[%emt 0:00:05]} 1/2-1/2

[Event "Silves Open 2025"]
[Site "Fissul"]
[Date "2025.03.06"]
[Round "8.37"]
[White "Nguyen, Tri Khoi"]
[Black "Rogge, Marloes"]
[Result "1/2-1/2"]
[Annotator "NA RC COMBH"]
[ECO "E90"]
[WhiteElo "1630"]
[BlackElo "1761"]
[PlyCount "134"]
[EventDate "2025.03.03"]
[EventType "swiss"]
[EventCountry "POR"]
[SourceTitle "playchess.com"]
[Source "ChessBase"]
[SourceQuality "1"]
[TimeControl "5400+30"]

1. d4 {[%emt 0:00:05]} d6 {[%emt 0:00:11]} 2. c4 {[%emt 0:00:44]} g6 {[%emt 0:00:31]} 3. Nc3 {[%emt 0:00:41]} Bg7 {[%emt 0:00:14]} 4. e4 {[%emt 0:00:19]} e5 {[%emt 0:00:30]} 5. d5 {[%emt 0:00:42]} Nf6 {[%emt 0:00:22]} 6. Nf3 {[%emt 0:00:17]} O-O {[%emt 0:00:15]} 7. h3 {[%emt 0:00:08]} Nbd7 {[%emt 0:00:23]} 8. Be3 {[%emt 0:00:15]} b6 {[%emt 0:00:30]} 9. Qc2 {[%emt 0:00:27]} a5 {[%emt 0:00:50]} 10. Be2 {[%emt 0:00:51]} Nc5 {[%emt 0:00:29]} 11. O-O {[%emt 0:00:17]} Bd7 {[%emt 0:00:19]} 12. Nd2 {[%emt 0:03:48]} Re8 {[%emt 0:02:23]} 13. f3 {[%emt 0:07:13]} Nh5 {[%emt 0:01:06]} 14. Bf2 {[%emt 0:01:23]} Nf4 {[%emt 0:00:36]} 15. Kh2 {[%emt 0:01:15]} f5 {[%emt 0:03:29]} 16. Rg1 {[%emt 0:00:56]} fxe4 {[%emt 0:02:26]} 17. Ndxe4 {[%emt 0:00:44]} Qc8 {[%emt 0:00:58]} 18. Nxc5 {[%emt 0:06:52]} bxc5 {[%emt 0:00:11]} 19. Ne4 {[%emt 0:00:08]} Bf5 {[%emt 0:00:29]} 20. Bd3 {[%emt 0:00:06]} Nxd3 {[%emt 0:01:59]} 21. Qxd3 {[%emt 0:00:09]} Qd8 {[%emt 0:01:14]} 22. g4 {[%emt 0:05:50]} Bd7 {[%emt 0:01:01]} 23. Bg3 {[%emt 0:00:50]} Qe7 {[%emt 0:00:43]} 24. Rgf1 {[%emt 0:03:23]} a4 {[%emt 0:00:35]} 25. Kg2 {[%emt 0:00:40]} Bh6 {[%emt 0:01:26]} 26. Rae1 {[%emt 0:05:58]} Bf4 {[%emt 0:02:48]} 27. Nc3 {[%emt 0:01:01]} Bxg3 {[%emt 0:02:04]} 28. Kxg3 {[%emt 0:00:03]} Qg5 {[%emt 0:00:38]} 29. Qe3 {[%emt 0:00:04]} Qd8 {[%emt 0:01:50]} 30. Ne4 {[%emt 0:00:21]} Rb8 {[%emt 0:00:52]} 31. Re2 {[%emt 0:00:13]} Rf8 {[%emt 0:00:34]} 32. Qh6 {[%emt 0:03:49]} Rf4 {[%emt 0:01:33]} 33. Rh1 {[%emt 0:05:59]} Qf8 {[%emt 0:00:31]} 34. Qxf8+ {[%emt 0:01:33]} Rbxf8 {[%emt 0:00:07]} 35. Rf2 {[%emt 0:00:24]} h6 {[%emt 0:01:21]} 36. Re1 {[%emt 0:04:35]} g5 {[%emt 0:01:25]} 37. Rh1 {[%emt 0:01:25]} Kg7 {[%emt 0:00:31]} 38. h4 {[%emt 0:00:21]} gxh4+ {[%emt 0:01:35]} 39. Rxh4 {[%emt 0:00:05]} Kg6 {[%emt 0:01:32]} 40. b3 {[%emt 0:00:49]} axb3 {[%emt 0:00:18]} 41. axb3 {[%emt 0:00:03]} Bc8 {[%emt 0:01:00]} 42. Rhh2 {[%emt 0:01:37]} Bd7 {[%emt 0:00:31]} 43. Rh1 {[%emt 0:45:37]} Rb8 {[%emt 0:01:38]} 44. Nd2 {[%emt 0:00:00]} Rbf8 {[%emt 0:01:02]} 45. Rfh2 {[%emt 0:00:00]} Rh8 {[%emt 0:01:16]} 46. Ra1 {[%emt 0:00:00]} h5 {[%emt 0:01:09]} 47. Rah1 {[%emt 0:00:00]} Bxg4 {[%emt 0:01:22]} 48. Rh4 {[%emt 0:00:00]} Bf5 {[%emt 0:03:29]} 49. Rxf4 {[%emt 0:00:00]} exf4+ {[%emt 0:00:18]} 50. Kxf4 {[%emt 0:00:00]} h4 {[%emt 0:01:50]} 51. Rh2 {[%emt 0:00:00]} Bd7 {[%emt 0:02:23]} 52. Rg2+ {[%emt 0:00:00]} Kh6 {[%emt 0:02:02]} 53. Rh2 {[%emt 0:00:00]} Rf8+ {[%emt 0:00:40]} 54. Ke3 {[%emt 0:00:00]} h3 {[%emt 0:01:32]} 55. Ne4 {[%emt 0:00:00]} Kh5 {[%emt 0:02:42]} 56. Kf2 {[%emt 0:00:00]} Kh4 {[%emt 0:01:08]} 57. Nd2 {[%emt 0:00:00]} Ra8 {[%emt 0:01:48]} 58. Rh1 {[%emt 0:00:00]} Ra2 {[%emt 0:00:41]} 59. Ke3 {[%emt 0:00:00]} Bf5 {[%emt 0:01:31]} 60. Rg1 {[%emt 0:00:00]} Ra8 {[%emt 0:03:01]} 61. Kf4 {[%emt 0:00:00]} Bd7 {[%emt 0:00:22]} 62. Rg7 {[%emt 0:00:00]} Rf8+ {[%emt 0:00:58]} 63. Ke3 {[%emt 0:00:00]} Bf5 {[%emt 0:00:57]} 64. Nf1 {[%emt 0:00:00]} Rb8 {[%emt 0:01:43]} 65. Kf4 {[%emt 0:00:00]} Rf8 {[%emt 0:01:35]} 66. Ke3 {[%emt 0:00:00]} Re8+ {[%emt 0:01:52]} 67. Kf4 {[%emt 0:00:00]} Rf8 {[%emt 0:00:47]} 1/2-1/2

[Event "Silves Open 2025"]
[Site "Fissul"]
[Date "2025.03.07"]
[Round "9.2"]
[White "Degardin, Sylvain"]
[Black "Lux, Hugo de Melo"]
[Result "1/2-1/2"]
[Annotator "TA"]
[ECO "B61"]
[WhiteElo "2309"]
[BlackElo "2329"]
[PlyCount "36"]
[EventDate "2025.03.03"]
[EventType "swiss"]
[EventCountry "POR"]
[SourceTitle "playchess.com"]
[Source "ChessBase"]
[SourceQuality "1"]
[TimeControl "5400+30"]

{[%evp 14,36,51,44,46,38,34,22,68,32,47,50,51,47,48,39,52,33,35,33,43,33,36,36,45]} 1. e4 {[%emt 0:05:19]} c5 {[%emt 0:00:10]} 2. Nf3 {[%emt 0:00:17]} Nc6 {[%emt 0:00:06]} 3. d4 {[%emt 0:00:28]} cxd4 {[%emt 0:00:04]} 4. Nxd4 {[%emt 0:00:08]} Nf6 {[%emt 0:00:06]} 5. Nc3 {[%emt 0:00:11]} d6 {[%emt 0:00:07]} 6. Bg5 {[%emt 0:00:37]} Bd7 {[%emt 0:00:08]} 7. Qd2 {[%emt 0:03:20]} Rc8 {[%emt 0:00:16]} 8. f3 {[%emt 0:00:48]} a6 {[%emt 0:02:57] B61: Sicilian: Richter-Rauzer: 6...Bd7 7 Qd2.} 9. h4 {[%emt 0:03:26]} Nxd4 {[%emt 0:21:58]} 10. Qxd4 {[%emt 0:00:23]} Qa5 {[%emt 0:00:07]} (10... h6 $11 11. Bxf6 gxf6) 11. Bc4 {[%emt 0:07:28] White is slightly better.} Qc5 {[%emt 0:20:09]} 12. Qxc5 {[%emt 0:01:56]} Rxc5 {[%emt 0:00:01]} 13. Bb3 {[%emt 0:00:38]} h5 $146 {[%emt 0:00:45]} ({Predecessor:} 13... h6 14. Be3 Rc8 15. O-O-O e6 16. Rd2 Bc6 17. Bf4 e5 18. Be3 Be7 19. g4 Nd7 {½-½ Berg,E (2579)-Lissang,C (2313) Vasteras op 2016 (7)}) 14. O-O-O {[%emt 0:03:17]} Be6 {[%emt 0:10:00]} 15. Rhe1 {[%emt 0:29:07]} Bxb3 {[%emt 0:03:22]} 16. axb3 {[%emt 0:00:31]} Nd7 {[%emt 0:00:08]} 17. Nd5 {[%emt 0:04:42]} g6 {[%emt 0:00:43]} 18. c3 {[%emt 0:07:32]} f6 {[%emt 0:01:19] Weighted Error Value: White=0.08 (flawless) /Black=0.08 (flawless)   Mistake:       	---       	Black=1      Inaccurate:     	White=1     	---        OK:         	White=4     	Black=4} 1/2-1/2

[Event "Silves Open 2025"]
[Site "Fissul"]
[Date "2025.03.07"]
[Round "9.3"]
[White "Fernandes, Antonio"]
[Black "Sanz Wawer, Daniel"]
[Result "1-0"]
[Annotator "TA"]
[ECO "E02"]
[WhiteElo "2326"]
[BlackElo "2283"]
[PlyCount "89"]
[EventDate "2025.03.03"]
[EventType "swiss"]
[EventCountry "POR"]
[SourceTitle "playchess.com"]
[Source "ChessBase"]
[SourceQuality "1"]
[TimeControl "5400+30"]

{[%evp 15,89,35,32,35,40,45,42,41,42,35,29,36,59,39,84,12,93,73,99,103,160,152,157,132,191,193,168,137,135,140,178,181,204,0,9,0,0,0,0,-17,0,-43,-36,-37,0,0,0,0,0,0,0,0,7,8,32,0,0,0,6,15,22,15,130,87,85,55,125,95,154,170,1403,831,29990,29991,29998,29999]} 1. d4 {[%emt 0:11:50]} Nf6 {[%emt 0:00:05]} 2. c4 {[%emt 0:00:06]} e6 {[%emt 0:00:05]} 3. g3 {[%emt 0:00:07]} d5 {[%emt 0:00:07]} 4. Bg2 {[%emt 0:00:39]} Be7 {[%emt 0:00:05]} 5. Nf3 {[%emt 0:00:10]} O-O {[%emt 0:00:07]} 6. O-O {[%emt 0:00:17]} dxc4 {[%emt 0:00:30]} 7. Qa4 {[%emt 0:03:21]} Bd7 {[%emt 0:06:33]} 8. Qxc4 {[%emt 0:00:46]} Bc6 {[%emt 0:00:28]} 9. Nc3 {[%emt 0:01:38] E02: Open Catalan: 5 Qa4+.} a6 {[%emt 0:04:49]} 10. Qd3 {[%emt 0:03:19]} b5 {[%emt 0:09:25]} 11. a3 {[%emt 0:05:18] White is slightly better.} Nbd7 {[%emt 0:06:03]} 12. Rd1 {[%emt 0:31:32]} Bb7 {[%emt 0:05:38]} 13. b4 {[%emt 0:26:17]} (13. Bg5 {seems wilder.} c5 14. dxc5 Bxc5 15. Ne5) 13... Ra7 $146 {[%emt 0:04:47]} ({Predecessor:} 13... Nb6 14. Ne5 Nbd5 15. Nxd5 Nxd5 16. e4 Nf6 17. Bf4 a5 18. d5 axb4 19. Qxb5 Ba6 {1-0 Mohammed,Z (2206)-Ashwath Narayanan,P (1760) Qatar Masters op-B 2024 (6)}) 14. e4 {[%emt 0:09:26]} Qa8 {[%emt 0:00:30][%cal Rf6e4]} 15. Nd2 {[%emt 0:00:47]} ({White should play} 15. d5 $16) 15... Rd8 {[%emt 0:01:22]} (15... a5 $1 $11) 16. Qc2 $16 {[%emt 0:02:26]} e5 {[%emt 0:06:52]} 17. Nb3 {[%emt 0:00:23]} exd4 {[%emt 0:07:38]} (17... Nb6 $142) 18. Nxd4 {[%emt 0:00:12]} Bf8 {[%emt 0:00:06]} 19. Nf5 {[%emt 0:00:47]} Re8 {[%emt 0:08:58]} (19... Qc8 $16 {keeps fighting.}) 20. Be3 $1 $18 {[%emt 0:00:33]} Nb6 {[%emt 0:00:06][%cal Rf6e4]} 21. Nd5 {[%emt 0:00:21]} Nfxd5 {[%emt 0:14:52]} 22. exd5 {[%emt 0:00:01]} Qd8 {[%emt 0:00:21]} 23. Rac1 {[%emt 0:00:18]} Ba8 {[%emt 0:01:28] [#]} 24. d6 $2 {[%emt 0:00:54]} cxd6 $11 {[%emt 0:03:21]} 25. Bxa8 {[%emt 0:00:59]} Rxa8 {[%emt 0:00:35]} 26. Bxb6 {[%emt 0:00:30]} Qxb6 {[%emt 0:00:08]} 27. Qc6 {[%emt 0:00:28]} Qd8 {[%emt 0:06:16]} 28. Qd5 {[%emt 0:00:34][%cal Oc1c6]} g6 {[%emt 0:13:15]} 29. Ne3 {[%emt 0:00:25]} (29. Nxd6 $2 Bxd6 30. Qf3 (30. Qxd6 $2 Re1+ 31. Rxe1 Qxd6 $19) 30... Qe7 $19) 29... Qf6 {[%emt 0:00:00]} 30. Rc7 {[%emt 0:00:34]} h5 {[%emt 0:00:00]} 31. Qd3 {[%emt 0:00:29]} Qf3 {[%emt 0:00:00]} 32. Qd5 {[%emt 0:00:27]} (32. Nd5 $2 Re1+ 33. Rxe1 Qxd3 $19) 32... Qf6 {[%emt 0:00:00]} 33. Qd3 {[%emt 0:00:32]} Rac8 {[%emt 0:00:00]} 34. Nd5 {[%emt 0:00:10]} Qe5 {[%emt 0:00:09]} 35. Rdc1 $40 {[%emt 0:00:46][%mdl 128] White is up to no good.} Rxc7 {[%emt 0:01:02]} 36. Rxc7 {[%emt 0:00:03]} Bg7 {[%emt 0:00:27][%cal Oh5h4]} 37. Qf3 {[%emt 0:00:21]} f5 {[%emt 0:01:04]} 38. Nf4 {[%emt 0:00:31][%cal Bd5f4,Bf4h3,Bh3g5][%mdl 1056] White has compensation.} Qf6 {[%emt 0:00:54]} (38... Kh7 $11 {remains equal.}) 39. h4 {[%emt 0:00:27] White has more active pieces.} Re4 {[%emt 0:00:37]} 40. Kh2 {[%emt 0:01:11]} Kh7 {[%emt 0:00:32]} (40... d5 $14) 41. Nh3 $16 {[%emt 0:00:30] Ng5+ is the strong threat.} Re8 {[%emt 0:00:55]} ({Black should try} 41... Kh6) 42. Qc6 {[%emt 0:00:31]} Re2 {[%emt 0:00:34]} (42... Re7 43. Rxe7 Qxe7) 43. Qa8 {[%emt 0:00:29] Ng5+ would kill now.} (43. Qxa6 f4 $16) 43... f4 {[%emt 0:00:38]} 44. Ng5+ {[%emt 0:00:06]} ({Not} 44. gxf4 Qxh4 45. Qa7 Qf6 $14) 44... Kh6 {[%emt 0:00:05] [#]} 45. Qh8+ $3 {[%emt 0:00:01][%mdl 512] Weighted Error Value: White=0.32/Black=0.46  Missed win:     	White=1     	---        Mistake:       	White=1     	Black=7      Inaccurate:     	White=5     	Black=4      OK:         	White=11    	Black=10     Best:        	---       	Black=2      Strong:       	White=1     	---} 1-0

[Event "Silves Open 2025"]
[Site "Fissul"]
[Date "2025.03.07"]
[Round "9.4"]
[White "Sarabando, Rodrigo Andias"]
[Black "Hopman, Pieter"]
[Result "1/2-1/2"]
[Annotator "TA"]
[ECO "E94"]
[WhiteElo "2097"]
[BlackElo "2312"]
[PlyCount "75"]
[EventDate "2025.03.03"]
[EventType "swiss"]
[EventCountry "POR"]
[SourceTitle "playchess.com"]
[Source "ChessBase"]
[SourceQuality "1"]
[TimeControl "5400+30"]

{[%evp 16,75,58,57,95,13,19,0,7,0,0,0,0,0,0,-20,11,-55,-60,-67,-68,-74,-45,-68,-60,-87,-81,-78,-70,-85,-60,-81,-66,-56,-68,-96,-83,-88,0,-78,0,8,15,16,14,14,29,21,31,0,0,0,0,0,39,0,45,42,31,8,14,0]} 1. d4 {[%emt 0:03:56]} d6 {[%emt 0:00:43]} 2. Nf3 {[%emt 0:01:07]} g6 {[%emt 0:00:08]} 3. c4 {[%emt 0:06:15]} Bg7 {[%emt 0:00:10]} 4. e4 {[%emt 0:03:10]} Nf6 {[%emt 0:00:17]} 5. Nc3 {[%emt 0:00:10]} O-O {[%emt 0:00:06]} 6. Be2 {[%emt 0:00:04]} Nbd7 {[%emt 0:00:55]} 7. O-O {[%emt 0:08:23]} e5 {[%emt 0:00:13]} 8. Be3 {[%emt 0:00:21]} Qe7 $1 {[%emt 0:00:06][%mdl 4] is now more promising than 8...c6.} 9. d5 {[%emt 0:02:18]} c5 {[%emt 0:02:08] E94: King's Indian: Classical: 6 Be2 e5 7 0-0: Various Black 7th moves.} 10. dxc6 {[%emt 0:06:46] White is more active.} (10. Re1 $16) 10... bxc6 $11 {[%emt 0:00:05]} 11. b4 {[%emt 0:02:59]} Bb7 {[%emt 0:00:07]} 12. a3 $146 {[%emt 0:13:21]} (12. Qd2 Rfd8 13. Rfd1 Nf8 14. a4 Ne6 15. h3 d5 16. cxd5 cxd5 17. exd5 Nxd5 18. Nxd5 Rxd5 19. Qa2 e4 20. Rxd5 Bxa1 21. Qxa1 Bxd5 22. Qe5 exf3 23. Qxd5 fxe2 {0-1 Al Sayed,M (2508)-Fressinet,L (2672) Wch Rapid Doha 2016 (13)}) 12... Rfd8 {[%emt 0:05:09]} 13. Qb3 {[%emt 0:08:12]} Nf8 {[%emt 0:04:37][%cal Bd7f8,Bf8e6,Be6d4][%mdl 32]} 14. Rad1 {[%emt 0:09:10]} Ne6 {[%emt 0:02:36]} 15. Ne1 {[%emt 0:10:58]} Nd4 {[%emt 0:15:27]} 16. Qb2 {[%emt 0:10:17]} ({Better is} 16. Bxd4 $11 exd4 17. Rxd4) 16... d5 $15 {[%emt 0:06:49]} 17. Bg5 {[%emt 0:04:22]} h6 {[%emt 0:17:56]} (17... dxe4 18. Nxe4 h6 19. Bxf6 Bxf6 20. Nxf6+ Qxf6 21. Nf3 $11) 18. Bxf6 {[%emt 0:00:26]} Qxf6 {[%emt 0:01:21]} 19. Nd3 {[%emt 0:01:56]} dxe4 {[%emt 0:04:39][%csl Od4] Strong Square Black (d4)} 20. Nc5 {[%emt 0:00:44] [#]} Qe7 {[%emt 0:01:00]} 21. Nxb7 {[%emt 0:02:12]} Qxb7 {[%emt 0:01:53]} 22. Nxe4 {[%emt 0:00:01]} f5 {[%emt 0:00:33]} 23. Nc5 {[%emt 0:00:10]} Qe7 {[%emt 0:00:51]} 24. Nb3 {[%emt 0:00:11] [#]} c5 $1 {[%emt 0:05:00]} 25. Nxc5 {[%emt 0:01:27]} (25. Nxd4 cxd4) 25... e4 {[%emt 0:00:08][%cal Od4f3]} 26. Qa2 {[%emt 0:00:17]} f4 {[%emt 0:00:11] Black has a king side majority} (26... a5 $17 27. Nb3 Nxe2+ (27... axb4 28. a4 $19) 28. Qxe2 axb4 29. axb4 Qxb4) 27. f3 {[%emt 0:00:59]} (27. Nb3 $11) 27... exf3 {[%emt 0:03:14]} ({Black should play} 27... a5 $17 {...axb4 is the strong threat.} 28. Nxe4 axb4 29. c5+ Kh7) 28. Bxf3 $11 {[%emt 0:00:02]} Nxf3+ {[%emt 0:00:37]} 29. gxf3 {[%emt 0:00:14] and Ne4 would now be decisive} Bd4+ {[%emt 0:04:06]} 30. Kh1 {[%emt 0:00:36]} Bxc5 {[%emt 0:07:23]} 31. bxc5 {[%emt 0:00:11]} Qxc5 {[%emt 0:00:37]} 32. Qe2 {[%emt 0:00:54]} Re8 {[%emt 0:01:03] Wards off Qe6+} 33. Qd3 {[%emt 0:00:06]} Re6 {[%emt 0:03:04]} 34. Rfe1 {[%emt 0:00:24]} Qc6 {[%emt 0:00:52]} 35. Kg2 {[%emt 0:05:21][%cal Oc4c5]} Rf8 {[%emt 0:01:44]} 36. Rxe6 {[%emt 0:00:00]} Qxe6 {[%emt 0:00:05]} 37. Qd5 {[%emt 0:00:00]} Qxd5 {[%emt 0:03:47]} 38. Rxd5 {[%emt 0:00:00] Weighted Error Value: White=0.20 (precise) /Black=0.14 (very precise)   Mistake:       	White=3     	Black=2      Inaccurate:     	White=4     	Black=4      OK:         	White=7     	Black=14     Best:        	White=2     	Black=1      Brilliant:      	---       	Black=1} 1/2-1/2